[Event "Early-Titled-Tuesday-Blitz-December-26-2023"]
[Site "Chess.com"]
[Date "2023.12.26"]
[Round "5"]
[White "Pakarma"]
[Black "AlexPapasimakopoulos"]
[Result "0-1"]
[WhiteElo "2456"]
[BlackElo "2635"]
[TimeControl "180+1"]
[EndTime "8:55:23 PST"]
[Termination "AlexPapasimakopoulos won by resignation"]

1. e4 {[%clk 0:03:00.9]} 1... e6 {[%clk 0:02:57.1]} 2. d4 {[%clk 0:03:00.6]}
2... d5 {[%clk 0:02:57.1]} 3. Nc3 {[%clk 0:02:58.5]} 3... Bb4 {[%clk 0:02:56.6]}
4. e5 {[%clk 0:02:58.1]} 4... c5 {[%clk 0:02:57]} 5. a3 {[%clk 0:02:58.5]} 5...
Bxc3+ {[%clk 0:02:57.2]} 6. bxc3 {[%clk 0:02:59.4]} 6... Nc6 {[%clk 0:02:56]} 7.
Nf3 {[%clk 0:02:56.8]} 7... Qa5 {[%clk 0:02:51.8]} 8. Bd2 {[%clk 0:02:56.4]}
8... Bd7 {[%clk 0:02:51.9]} 9. a4 {[%clk 0:02:56.2]} 9... Nge7 {[%clk
0:02:51.7]} 10. Bd3 {[%clk 0:02:56.1]} 10... c4 {[%clk 0:02:51.6]} 11. Bf1
{[%clk 0:02:55.9]} 11... f6 {[%clk 0:02:51.9]} 12. exf6 {[%clk 0:02:55.6]} 12...
gxf6 {[%clk 0:02:52.8]} 13. g3 {[%clk 0:02:55.9]} 13... e5 {[%clk 0:02:52.4]}
14. dxe5 {[%clk 0:02:54.8]} 14... fxe5 {[%clk 0:02:53.3]} 15. Bg2 {[%clk
0:02:41.4]} 15... O-O-O {[%clk 0:02:52.4]} 16. O-O {[%clk 0:02:38.6]} 16... Bg4
{[%clk 0:02:46.4]} 17. Qe1 {[%clk 0:02:27.4]} 17... Bxf3 {[%clk 0:02:40]} 18.
Bxf3 {[%clk 0:02:26]} 18... e4 {[%clk 0:02:40.7]} 19. Bg4+ {[%clk 0:02:06.3]}
19... Kb8 {[%clk 0:02:41]} 20. Rb1 {[%clk 0:01:51.1]} 20... Ne5 {[%clk
0:02:38.9]} 21. Bf4 {[%clk 0:01:48.9]} 21... Ng6 {[%clk 0:02:39.1]} 22. Qe3
{[%clk 0:01:37.6]} 22... Rhf8 {[%clk 0:02:38.6]} 23. Bh5 {[%clk 0:01:14.6]}
23... Nxf4 {[%clk 0:02:34.6]} 24. gxf4 {[%clk 0:01:12.8]} 24... Nc6 {[%clk
0:02:28.1]} 25. Kh1 {[%clk 0:01:07.2]} 25... Qxa4 {[%clk 0:02:25.9]} 26. Rg1
{[%clk 0:01:00.3]} 26... Rd7 {[%clk 0:02:24.9]} 27. f5 {[%clk 0:00:56.5]} 27...
Qxc2 {[%clk 0:02:23.4]} 28. Qc5 {[%clk 0:00:38.1]} 28... Rc8 {[%clk 0:02:19.6]}
29. f6 {[%clk 0:00:15.6]} 29... Qxc3 {[%clk 0:02:19.8]} 30. f7 {[%clk
0:00:14.4]} 30... Qf6 {[%clk 0:02:13.5]} 31. Rg3 {[%clk 0:00:11.5]} 31... Ne5
{[%clk 0:02:10.8]} 32. Qb5 {[%clk 0:00:09.9]} 32... Qxf2 {[%clk 0:02:01.1]} 33.
Rg8 {[%clk 0:00:08.2]} 33... a6 {[%clk 0:01:39.5]} 34. Rxc8+ {[%clk 0:00:07.3]}
34... Kxc8 {[%clk 0:01:40.4]} 35. Qb4 {[%clk 0:00:04.1]} 35... Nxf7 {[%clk
0:01:32.9]} 36. Qf8+ {[%clk 0:00:04.2]} 36... Kc7 {[%clk 0:01:32.9]} 37. Qg7
{[%clk 0:00:02.4]} 37... Qf5 {[%clk 0:01:29.4]} 38. Qg3+ {[%clk 0:00:02.2]}
38... Qe5 {[%clk 0:01:28.6]} 39. Qh3 {[%clk 0:00:02.1]} 39... Ng5 {[%clk
0:01:26.6]} 40. Qh4 {[%clk 0:00:02.4]} 40... Nf3 {[%clk 0:01:24.9]} 41. Qh3
{[%clk 0:00:02.9]} 41... Rg7 {[%clk 0:01:19.8]} 42. Rd1 {[%clk 0:00:01.1]} 42...
c3 {[%clk 0:01:14.4]} 43. Bxf3 {[%clk 0:00:01.3]} 43... exf3 {[%clk 0:01:14.4]}
44. Qxf3 {[%clk 0:00:02.2]} 44... Qe4 {[%clk 0:01:14.9]} 45. Qxe4 {[%clk
0:00:01.9]} 45... dxe4 {[%clk 0:01:15.8]} 46. Rc1 {[%clk 0:00:02.4]} 46... Kd6
{[%clk 0:01:13.8]} 47. Rxc3 {[%clk 0:00:03.3]} 47... Kd5 {[%clk 0:01:14.2]} 48.
Rb3 {[%clk 0:00:03.7]} 48... Kd4 {[%clk 0:01:13.7]} 49. h4 {[%clk 0:00:04.6]}
49... e3 {[%clk 0:01:14]} 50. Rb6 {[%clk 0:00:05.3]} 50... e2 {[%clk 0:01:14.2]}
51. Rd6+ {[%clk 0:00:06.2]} 51... Ke5 {[%clk 0:01:13.8]} 52. Rd8 {[%clk
0:00:06.4]} 52... e1=Q+ {[%clk 0:01:13.6]} 0-1

[Event "Early-Titled-Tuesday-Blitz-December-26-2023"]
[Site "Chess.com"]
[Date "2023.12.26"]
[Round "5"]
[White "Statham_l3"]
[Black "Ali_rastbod"]
[Result "0-1"]
[WhiteElo "2563"]
[BlackElo "2725"]
[TimeControl "180+1"]
[EndTime "8:55:28 PST"]
[Termination "Ali_rastbod won by resignation"]

1. e4 {[%clk 0:03:00.9]} 1... c6 {[%clk 0:02:55.6]} 2. d4 {[%clk 0:03:00.4]}
2... d5 {[%clk 0:02:56.5]} 3. f3 {[%clk 0:03:00.7]} 3... g6 {[%clk 0:02:49.9]}
4. Nc3 {[%clk 0:03:00.7]} 4... Bg7 {[%clk 0:02:49]} 5. Be3 {[%clk 0:03:01.1]}
5... Qb6 {[%clk 0:02:49.4]} 6. Qd2 {[%clk 0:03:00.8]} 6... Qxb2 {[%clk
0:02:49.2]} 7. Rb1 {[%clk 0:03:01]} 7... Qa3 {[%clk 0:02:49.9]} 8. h4 {[%clk
0:03:01.7]} 8... h5 {[%clk 0:02:46.5]} 9. exd5 {[%clk 0:03:01.9]} 9... Nf6
{[%clk 0:02:46.6]} 10. dxc6 {[%clk 0:02:56.5]} 10... bxc6 {[%clk 0:02:47.5]} 11.
Bc4 {[%clk 0:02:40.4]} 11... O-O {[%clk 0:02:43.8]} 12. Nge2 {[%clk 0:02:40.1]}
12... Ba6 {[%clk 0:02:32.4]} 13. Bxa6 {[%clk 0:02:25]} 13... Nxa6 {[%clk
0:02:33.3]} 14. O-O {[%clk 0:02:21.8]} 14... Nc7 {[%clk 0:02:33.6]} 15. Rb3
{[%clk 0:02:15.6]} 15... Qa6 {[%clk 0:02:33.3]} 16. Bh6 {[%clk 0:02:08.8]} 16...
Bxh6 {[%clk 0:02:27.5]} 17. Qxh6 {[%clk 0:02:09.7]} 17... Ncd5 {[%clk
0:02:28.4]} 18. Nf4 {[%clk 0:01:29.8]} 18... Nxf4 {[%clk 0:02:11.4]} 19. Qxf4
{[%clk 0:01:30.7]} 19... Rfd8 {[%clk 0:02:08.2]} 20. Ne4 {[%clk 0:01:24]} 20...
Kg7 {[%clk 0:01:52.4]} 21. Qe5 {[%clk 0:00:46.2]} 21... Re8 {[%clk 0:01:42.4]}
22. Rf2 {[%clk 0:00:28.5]} 22... Rad8 {[%clk 0:01:40.4]} 23. c3 {[%clk
0:00:17.2]} 23... Qc8 {[%clk 0:01:13.7]} 24. Rfb2 {[%clk 0:00:15.2]} 24... Rd5
{[%clk 0:01:13.6]} 25. Qf4 {[%clk 0:00:05.4]} 25... Rf5 {[%clk 0:01:11.5]} 26.
Qg3 {[%clk 0:00:03.9]} 26... Qe6 {[%clk 0:01:09.9]} 27. Rb7 {[%clk 0:00:03.8]}
27... Nxe4 {[%clk 0:01:09.6]} 28. fxe4 {[%clk 0:00:04.7]} 28... Qxe4 {[%clk
0:01:10.1]} 29. Rxa7 {[%clk 0:00:05.4]} 29... c5 {[%clk 0:01:02.4]} 30. Rbb7
{[%clk 0:00:05]} 30... cxd4 {[%clk 0:01:00.5]} 31. cxd4 {[%clk 0:00:04.4]} 31...
Qxd4+ {[%clk 0:01:01.4]} 32. Kh2 {[%clk 0:00:05.1]} 32... Rf4 {[%clk 0:00:58.8]}
33. Kh3 {[%clk 0:00:04.1]} 33... Rg4 {[%clk 0:00:56.2]} 34. Qe1 {[%clk
0:00:04.4]} 34... Re4 {[%clk 0:00:51.9]} 35. Qg3 {[%clk 0:00:02.9]} 35... Re3
{[%clk 0:00:52.3]} 36. Rxe7 {[%clk 0:00:02]} 36... Rxg3+ {[%clk 0:00:49.8]} 37.
Kxg3 {[%clk 0:00:02.9]} 37... Rxe7 {[%clk 0:00:50.5]} 38. Rxe7 {[%clk
0:00:03.8]} 38... Qd6+ {[%clk 0:00:50.8]} 39. Re5 {[%clk 0:00:04.5]} 39... Qxe5+
{[%clk 0:00:50.7]} 0-1

[Event "Early-Titled-Tuesday-Blitz-December-26-2023"]
[Site "Chess.com"]
[Date "2023.12.26"]
[Round "5"]
[White "Iball95"]
[Black "Zavgorodniy_Sergiy"]
[Result "1/2-1/2"]
[WhiteElo "2801"]
[BlackElo "2628"]
[TimeControl "180+1"]
[EndTime "8:55:33 PST"]
[Termination "Game drawn by repetition"]

1. e4 {[%clk 0:02:27.1]} 1... c6 {[%clk 0:03:00]} 2. d4 {[%clk 0:02:25.9]} 2...
d5 {[%clk 0:03:00.9]} 3. exd5 {[%clk 0:02:26.8]} 3... cxd5 {[%clk 0:03:01.2]} 4.
c4 {[%clk 0:02:27.5]} 4... Nf6 {[%clk 0:03:01.2]} 5. Nc3 {[%clk 0:02:28]} 5...
e6 {[%clk 0:03:01.8]} 6. c5 {[%clk 0:02:27.8]} 6... Be7 {[%clk 0:03:02]} 7. Bb5+
{[%clk 0:02:27.2]} 7... Bd7 {[%clk 0:02:57.4]} 8. Bxd7+ {[%clk 0:02:26.5]} 8...
Qxd7 {[%clk 0:02:49.4]} 9. Nf3 {[%clk 0:02:27]} 9... Nc6 {[%clk 0:02:49]} 10.
Rb1 {[%clk 0:02:21]} 10... Ne4 {[%clk 0:02:45.9]} 11. Qc2 {[%clk 0:02:20.5]}
11... Bf6 {[%clk 0:02:29.8]} 12. b4 {[%clk 0:02:02.3]} 12... Bxd4 {[%clk
0:02:16.4]} 13. Nxe4 {[%clk 0:01:56.2]} 13... dxe4 {[%clk 0:02:12.5]} 14. Qxe4
{[%clk 0:01:56.5]} 14... Bc3+ {[%clk 0:02:12]} 15. Ke2 {[%clk 0:01:54]} 15...
O-O-O {[%clk 0:01:50.9]} 16. Bg5 {[%clk 0:01:52.6]} 16... Qd5 {[%clk 0:01:44.9]}
17. Qxd5 {[%clk 0:01:48.3]} 17... Rxd5 {[%clk 0:01:45.8]} 18. a3 {[%clk
0:01:43.6]} 18... a5 {[%clk 0:01:28.6]} 19. Rhc1 {[%clk 0:01:35]} 19... axb4
{[%clk 0:01:25.8]} 20. Be3 {[%clk 0:01:21.4]} 20... Rhd8 {[%clk 0:01:14]} 21.
axb4 {[%clk 0:00:47.3]} 21... Bxb4 {[%clk 0:01:14.9]} 22. Ng5 {[%clk 0:00:47.5]}
22... Bd2 {[%clk 0:01:08.5]} 23. Nxf7 {[%clk 0:00:29.6]} 23... Bxc1 {[%clk
0:01:05.9]} 24. Nxd8 {[%clk 0:00:28.8]} 24... Bxe3 {[%clk 0:00:59.7]} 25. Nxc6
{[%clk 0:00:28.9]} 25... Bxc5 {[%clk 0:00:52.4]} 26. Na5 {[%clk 0:00:29]} 26...
b6 {[%clk 0:00:48.9]} 27. Nc4 {[%clk 0:00:29.1]} 27... Kc7 {[%clk 0:00:47.6]}
28. g3 {[%clk 0:00:29.4]} 28... Rd4 {[%clk 0:00:46]} 29. Nd2 {[%clk 0:00:28.5]}
29... Rb4 {[%clk 0:00:41.8]} 30. Rc1 {[%clk 0:00:27.1]} 30... Rb2 {[%clk
0:00:41]} 31. f4 {[%clk 0:00:26.2]} 31... Kd7 {[%clk 0:00:36.8]} 32. Kd3 {[%clk
0:00:25.5]} 32... Bb4 {[%clk 0:00:33.9]} 33. Nc4 {[%clk 0:00:25.4]} 33... Rxh2
{[%clk 0:00:31.7]} 34. Nxb6+ {[%clk 0:00:25.7]} 34... Kd6 {[%clk 0:00:28]} 35.
Nc8+ {[%clk 0:00:20.8]} 35... Kd7 {[%clk 0:00:26.1]} 36. Nb6+ {[%clk 0:00:21.4]}
36... Kd6 {[%clk 0:00:21.1]} 37. Nc8+ {[%clk 0:00:21.3]} 37... Kd7 {[%clk
0:00:19.3]} 38. Nb6+ {[%clk 0:00:21.9]} 1/2-1/2

[Event "Early-Titled-Tuesday-Blitz-December-26-2023"]
[Site "Chess.com"]
[Date "2023.12.26"]
[Round "5"]
[White "enestnrvrd"]
[Black "Kiborg95"]
[Result "1-0"]
[WhiteElo "2664"]
[BlackElo "2800"]
[TimeControl "180+1"]
[EndTime "8:55:34 PST"]
[Termination "enestnrvrd won by resignation"]

1. Nf3 {[%clk 0:02:54.8]} 1... d6 {[%clk 0:03:00.4]} 2. d4 {[%clk 0:02:53.9]}
2... Nf6 {[%clk 0:02:59.9]} 3. c4 {[%clk 0:02:54.4]} 3... Nbd7 {[%clk
0:02:55.6]} 4. Nc3 {[%clk 0:02:54.1]} 4... e5 {[%clk 0:02:50.4]} 5. e3 {[%clk
0:02:54.3]} 5... g6 {[%clk 0:02:45]} 6. Bd3 {[%clk 0:02:46.1]} 6... Bg7 {[%clk
0:02:44.7]} 7. O-O {[%clk 0:02:46.2]} 7... O-O {[%clk 0:02:45.3]} 8. Qc2 {[%clk
0:02:45.1]} 8... a5 {[%clk 0:02:42.8]} 9. b3 {[%clk 0:02:40.2]} 9... Re8 {[%clk
0:02:42.8]} 10. Bb2 {[%clk 0:02:36.1]} 10... b6 {[%clk 0:02:42.9]} 11. Rae1
{[%clk 0:02:05.4]} 11... Bb7 {[%clk 0:02:42.6]} 12. d5 {[%clk 0:02:01.2]} 12...
Nc5 {[%clk 0:02:40.6]} 13. Nd2 {[%clk 0:01:57.9]} 13... Nxd3 {[%clk 0:02:37]}
14. Qxd3 {[%clk 0:01:56.3]} 14... Nd7 {[%clk 0:02:37.3]} 15. e4 {[%clk
0:01:55.4]} 15... Nc5 {[%clk 0:02:35.5]} 16. Qc2 {[%clk 0:01:45.8]} 16... Bh6
{[%clk 0:02:26]} 17. Nd1 {[%clk 0:01:43.3]} 17... Bc8 {[%clk 0:02:21.2]} 18. Ne3
{[%clk 0:01:42.3]} 18... Rf8 {[%clk 0:02:13.7]} 19. a3 {[%clk 0:00:53.2]} 19...
f5 {[%clk 0:02:11.7]} 20. exf5 {[%clk 0:00:50.1]} 20... gxf5 {[%clk 0:02:11.7]}
21. f4 {[%clk 0:00:50.8]} 21... exf4 {[%clk 0:01:19.8]} 22. Qc3 {[%clk
0:00:47.5]} 22... Qf6 {[%clk 0:01:20.3]} 23. Qxf6 {[%clk 0:00:44.3]} 23... Rxf6
{[%clk 0:01:21.2]} 24. Bxf6 {[%clk 0:00:32.4]} 24... fxe3 {[%clk 0:01:21.2]} 25.
Nf3 {[%clk 0:00:33.1]} 25... Nxb3 {[%clk 0:01:20.8]} 26. Bg5 {[%clk 0:00:32.9]}
26... Bxg5 {[%clk 0:00:46]} 27. Nxg5 {[%clk 0:00:32.1]} 27... Nd2 {[%clk
0:00:42.4]} 28. Rf4 {[%clk 0:00:32.1]} 28... h6 {[%clk 0:00:18.4]} 29. Ne6
{[%clk 0:00:24.1]} 29... Bxe6 {[%clk 0:00:18.7]} 30. dxe6 {[%clk 0:00:24.7]}
30... Ne4 {[%clk 0:00:19.2]} 31. Rxe3 {[%clk 0:00:24]} 31... Re8 {[%clk
0:00:16.5]} 32. g4 {[%clk 0:00:22.5]} 32... Kg7 {[%clk 0:00:12]} 33. gxf5 {[%clk
0:00:22.5]} 33... Ng5 {[%clk 0:00:10.7]} 34. f6+ {[%clk 0:00:20.9]} 34... Kg6
{[%clk 0:00:10.2]} 35. f7 {[%clk 0:00:21.2]} 1-0

[Event "Early-Titled-Tuesday-Blitz-December-26-2023"]
[Site "Chess.com"]
[Date "2023.12.26"]
[Round "5"]
[White "Shahdad2007"]
[Black "defenceboy"]
[Result "1/2-1/2"]
[WhiteElo "2348"]
[BlackElo "2814"]
[TimeControl "180+1"]
[EndTime "8:55:35 PST"]
[Termination "Game drawn by repetition"]

1. e4 {[%clk 0:03:00.9]} 1... c5 {[%clk 0:02:54.3]} 2. Nf3 {[%clk 0:03:00]} 2...
e6 {[%clk 0:02:54.6]} 3. d4 {[%clk 0:02:59]} 3... cxd4 {[%clk 0:02:55.5]} 4.
Nxd4 {[%clk 0:02:59.5]} 4... Nc6 {[%clk 0:02:56]} 5. Nc3 {[%clk 0:02:57]} 5...
Qc7 {[%clk 0:02:55.1]} 6. Be3 {[%clk 0:02:57.2]} 6... a6 {[%clk 0:02:54.4]} 7.
Be2 {[%clk 0:02:57.3]} 7... Nf6 {[%clk 0:02:54.5]} 8. O-O {[%clk 0:02:57.1]}
8... Be7 {[%clk 0:02:54.8]} 9. f4 {[%clk 0:02:55.9]} 9... d6 {[%clk 0:02:54.9]}
10. Bf3 {[%clk 0:02:52.5]} 10... O-O {[%clk 0:02:49]} 11. Re1 {[%clk 0:02:36.8]}
11... Bd7 {[%clk 0:02:43.2]} 12. Kh1 {[%clk 0:02:30.3]} 12... Nxd4 {[%clk
0:02:25.3]} 13. Bxd4 {[%clk 0:02:29.4]} 13... Bc6 {[%clk 0:02:26.2]} 14. e5
{[%clk 0:02:26.6]} 14... Ne8 {[%clk 0:02:12.6]} 15. Ne4 {[%clk 0:02:10.2]} 15...
Rd8 {[%clk 0:02:07.2]} 16. Qe2 {[%clk 0:02:09.9]} 16... dxe5 {[%clk 0:02:00.4]}
17. Bxe5 {[%clk 0:02:07]} 17... Qb6 {[%clk 0:01:58.6]} 18. Rad1 {[%clk
0:01:58.4]} 18... Nf6 {[%clk 0:01:36.3]} 19. Nxf6+ {[%clk 0:01:38.4]} 19... Bxf6
{[%clk 0:01:34.8]} 20. Bxf6 {[%clk 0:01:37.4]} 20... gxf6 {[%clk 0:01:35.7]} 21.
Bxc6 {[%clk 0:01:14.9]} 21... bxc6 {[%clk 0:01:36.6]} 22. Qg4+ {[%clk
0:01:15.1]} 22... Kh8 {[%clk 0:01:36.4]} 23. b3 {[%clk 0:01:10.5]} 23... Qc5
{[%clk 0:01:33.3]} 24. c4 {[%clk 0:00:58.7]} 24... h5 {[%clk 0:01:08]} 25. Qf3
{[%clk 0:00:49.1]} 25... a5 {[%clk 0:01:07.5]} 26. h3 {[%clk 0:00:37.7]} 26...
Rg8 {[%clk 0:01:06.1]} 27. Rxd8 {[%clk 0:00:37.1]} 27... Rxd8 {[%clk 0:01:05.8]}
28. Re5 {[%clk 0:00:36]} 28... fxe5 {[%clk 0:00:54.7]} 29. Qxh5+ {[%clk
0:00:35.9]} 29... Kg7 {[%clk 0:00:53.6]} 30. Qg5+ {[%clk 0:00:36.1]} 30... Kh7
{[%clk 0:00:53.7]} 31. Qxd8 {[%clk 0:00:33.8]} 31... Qf2 {[%clk 0:00:37.4]} 32.
fxe5 {[%clk 0:00:24.8]} 32... Qe1+ {[%clk 0:00:37.3]} 33. Kh2 {[%clk 0:00:24.9]}
33... Qxe5+ {[%clk 0:00:37.6]} 34. Kh1 {[%clk 0:00:23.8]} 34... Qa1+ {[%clk
0:00:33.4]} 35. Kh2 {[%clk 0:00:24.1]} 35... Qxa2 {[%clk 0:00:33.7]} 36. Qh4+
{[%clk 0:00:24.4]} 36... Kg7 {[%clk 0:00:33.7]} 37. Qg5+ {[%clk 0:00:24.8]}
37... Kf8 {[%clk 0:00:33.6]} 38. Qd8+ {[%clk 0:00:24.7]} 38... Kg7 {[%clk
0:00:34.1]} 39. Qg5+ {[%clk 0:00:22.5]} 39... Kf8 {[%clk 0:00:34.4]} 40. Qc5+
{[%clk 0:00:17.8]} 40... Kg7 {[%clk 0:00:32.1]} 41. Qg5+ {[%clk 0:00:17.8]}
1/2-1/2

[Event "Early-Titled-Tuesday-Blitz-December-26-2023"]
[Site "Chess.com"]
[Date "2023.12.26"]
[Round "5"]
[White "FunnyDuck66"]
[Black "Navyblue1"]
[Result "1-0"]
[WhiteElo "2479"]
[BlackElo "2174"]
[TimeControl "180+1"]
[EndTime "8:55:35 PST"]
[Termination "FunnyDuck66 won on time"]

1. d4 {[%clk 0:03:00.9]} 1... Nf6 {[%clk 0:02:56]} 2. Nf3 {[%clk 0:03:01.2]}
2... g6 {[%clk 0:02:48.6]} 3. Bg5 {[%clk 0:03:00.8]} 3... Bg7 {[%clk 0:02:44.3]}
4. Nbd2 {[%clk 0:03:00.7]} 4... d5 {[%clk 0:02:41.3]} 5. e3 {[%clk 0:03:00.2]}
5... O-O {[%clk 0:02:38.8]} 6. Be2 {[%clk 0:02:59.5]} 6... c5 {[%clk 0:02:25]}
7. c3 {[%clk 0:02:56.7]} 7... Nc6 {[%clk 0:02:22.4]} 8. dxc5 {[%clk 0:02:55.9]}
8... e5 {[%clk 0:02:17.9]} 9. e4 {[%clk 0:02:34.8]} 9... h6 {[%clk 0:02:14.4]}
10. Bxf6 {[%clk 0:02:29]} 10... Bxf6 {[%clk 0:02:12.8]} 11. O-O {[%clk
0:02:27.1]} 11... a5 {[%clk 0:02:03.8]} 12. Qc2 {[%clk 0:02:18.1]} 12... Bg7
{[%clk 0:01:52.7]} 13. Rad1 {[%clk 0:02:15.1]} 13... d4 {[%clk 0:01:49]} 14. Nc4
{[%clk 0:02:09.8]} 14... Be6 {[%clk 0:01:34.2]} 15. Nb6 {[%clk 0:01:28.3]} 15...
Ra7 {[%clk 0:01:20.4]} 16. a3 {[%clk 0:01:21.4]} 16... Qe7 {[%clk 0:01:15]} 17.
cxd4 {[%clk 0:01:07.1]} 17... exd4 {[%clk 0:01:10.4]} 18. Nd5 {[%clk 0:01:07.3]}
18... Qd7 {[%clk 0:00:56]} 19. Bc4 {[%clk 0:01:04.1]} 19... a4 {[%clk
0:00:32.2]} 20. Rfe1 {[%clk 0:00:57.1]} 20... Ra5 {[%clk 0:00:26.7]} 21. Nb4
{[%clk 0:00:46.9]} 21... Qe7 {[%clk 0:00:15.4]} 22. Bxe6 {[%clk 0:00:45.4]}
22... fxe6 {[%clk 0:00:13.8]} 23. Nd3 {[%clk 0:00:45.8]} 23... e5 {[%clk
0:00:12.5]} 24. Qc4+ {[%clk 0:00:46]} 24... Qf7 {[%clk 0:00:11.2]} 25. Qc2
{[%clk 0:00:33.8]} 25... Rc8 {[%clk 0:00:09.6]} 26. Rc1 {[%clk 0:00:34]} 26...
Qe6 {[%clk 0:00:09.1]} 27. Qd2 {[%clk 0:00:32.3]} 27... Rb5 {[%clk 0:00:08.3]}
28. Qc2 {[%clk 0:00:31.4]} 28... Qb3 {[%clk 0:00:07.6]} 29. Qd2 {[%clk
0:00:28.2]} 29... g5 {[%clk 0:00:05.1]} 30. h3 {[%clk 0:00:27.5]} 30... Kf7
{[%clk 0:00:03.9]} 31. Rc2 {[%clk 0:00:26.2]} 31... Ke6 {[%clk 0:00:03.6]} 32.
Rec1 {[%clk 0:00:26.8]} 32... Ne7 {[%clk 0:00:02.2]} 33. Qe2 {[%clk 0:00:25.9]}
33... Bf6 {[%clk 0:00:01.3]} 34. Nd2 {[%clk 0:00:26.3]} 34... Ng6 {[%clk
0:00:01.5]} 35. Nxb3 {[%clk 0:00:26.6]} 1-0

[Event "Early-Titled-Tuesday-Blitz-December-26-2023"]
[Site "Chess.com"]
[Date "2023.12.26"]
[Round "5"]
[White "Matic_Nareks"]
[Black "AljoschaFeuerstack"]
[Result "0-1"]
[WhiteElo "2489"]
[BlackElo "2690"]
[TimeControl "180+1"]
[EndTime "8:55:43 PST"]
[Termination "AljoschaFeuerstack won by resignation"]

1. e4 {[%clk 0:03:00.9]} 1... a6 {[%clk 0:02:59.8]} 2. d4 {[%clk 0:03:00.2]}
2... c6 {[%clk 0:03:00.1]} 3. d5 {[%clk 0:02:59.4]} 3... g6 {[%clk 0:02:53.3]}
4. Nf3 {[%clk 0:02:56.8]} 4... Bg7 {[%clk 0:02:52.9]} 5. Be2 {[%clk 0:02:55.9]}
5... Nf6 {[%clk 0:02:47.5]} 6. Nc3 {[%clk 0:02:54.2]} 6... O-O {[%clk
0:02:40.9]} 7. O-O {[%clk 0:02:53.6]} 7... d6 {[%clk 0:02:33.8]} 8. h3 {[%clk
0:02:49.2]} 8... b5 {[%clk 0:02:29.4]} 9. a3 {[%clk 0:02:48.9]} 9... Bb7 {[%clk
0:02:21.1]} 10. Bg5 {[%clk 0:02:46.6]} 10... h6 {[%clk 0:02:15]} 11. Be3 {[%clk
0:02:44.6]} 11... Nbd7 {[%clk 0:01:55.7]} 12. Re1 {[%clk 0:02:41.1]} 12... cxd5
{[%clk 0:01:51.9]} 13. exd5 {[%clk 0:02:35]} 13... Nb6 {[%clk 0:01:52]} 14. Bxb6
{[%clk 0:02:23.7]} 14... Qxb6 {[%clk 0:01:52.9]} 15. Qd3 {[%clk 0:02:16.9]}
15... Rac8 {[%clk 0:01:51.1]} 16. Nd2 {[%clk 0:02:13.9]} 16... Nd7 {[%clk
0:01:41.2]} 17. Nb3 {[%clk 0:02:09.6]} 17... Ne5 {[%clk 0:01:35.1]} 18. Qg3
{[%clk 0:02:04.5]} 18... Rfe8 {[%clk 0:01:25.1]} 19. Qe3 {[%clk 0:01:53.8]}
19... Qxe3 {[%clk 0:01:23.3]} 20. fxe3 {[%clk 0:01:52.6]} 20... Ba8 {[%clk
0:01:09.1]} 21. Na5 {[%clk 0:01:49.6]} 21... Nd7 {[%clk 0:01:02.5]} 22. a4
{[%clk 0:01:31.4]} 22... b4 {[%clk 0:00:53.4]} 23. Nd1 {[%clk 0:01:31.3]} 23...
Bxd5 {[%clk 0:00:49.6]} 24. Bxa6 {[%clk 0:01:24.1]} 24... Rxc2 {[%clk
0:00:45.8]} 25. Bb5 {[%clk 0:01:21.8]} 25... Rxg2+ {[%clk 0:00:44.7]} 26. Kf1
{[%clk 0:01:21.2]} 26... Ra8 {[%clk 0:00:34.6]} 27. e4 {[%clk 0:01:18.1]} 27...
Be6 {[%clk 0:00:24.9]} 28. Kxg2 {[%clk 0:01:15.3]} 28... Rxa5 {[%clk 0:00:24.9]}
29. Rc1 {[%clk 0:01:12]} 29... Nc5 {[%clk 0:00:24.6]} 30. e5 {[%clk 0:01:08.9]}
30... Nxa4 {[%clk 0:00:22.1]} 31. Bxa4 {[%clk 0:01:08.8]} 31... Rxa4 {[%clk
0:00:23]} 32. exd6 {[%clk 0:01:09.2]} 32... exd6 {[%clk 0:00:23.7]} 33. Rc7
{[%clk 0:01:05.2]} 33... Ra2 {[%clk 0:00:22.7]} 34. Re2 {[%clk 0:01:01.6]} 34...
Bb3 {[%clk 0:00:20.6]} 35. Nf2 {[%clk 0:00:50.1]} 35... Rxb2 {[%clk 0:00:20.6]}
36. Rxb2 {[%clk 0:00:42.4]} 36... Bxb2 {[%clk 0:00:21.5]} 37. Ne4 {[%clk
0:00:40.4]} 37... Bd5 {[%clk 0:00:20.6]} 38. Kf3 {[%clk 0:00:36.1]} 38... Be5
{[%clk 0:00:21.2]} 39. Ke3 {[%clk 0:00:34.8]} 39... b3 {[%clk 0:00:19.6]} 40.
Rc8+ {[%clk 0:00:33.4]} 40... Kg7 {[%clk 0:00:19.5]} 41. Rb8 {[%clk 0:00:33.5]}
41... f5 {[%clk 0:00:15.8]} 42. Nd2 {[%clk 0:00:33.4]} 42... f4+ {[%clk
0:00:15.7]} 43. Kd3 {[%clk 0:00:33.3]} 43... b2 {[%clk 0:00:16.1]} 44. Nc4
{[%clk 0:00:30.1]} 44... Bxc4+ {[%clk 0:00:16.2]} 45. Kxc4 {[%clk 0:00:30.6]}
45... d5+ {[%clk 0:00:16.8]} 46. Kd3 {[%clk 0:00:28.1]} 46... Bxb8 {[%clk
0:00:17.7]} 0-1